bitfinex/quotes_ETHUSD_20230701
["timestamp","ask_amount","ask_price","bid_price","bid_amount"]
[1688245729894,21.14794184,1923.9,1923.8,0.949]
[1688245730418,21.15238979,1923.9,1923.8,0.949]
[1688245740518,21.15238979,1923.9,1923.7,3.62191614]
[1688245740691,2.68752184,1923.8,1923.7,3.62191614]
[1688245740896,15.68262184,1923.8,1923.7,3.62191614]
[1688245741205,15.68704878,1923.8,1923.7,3.62191614]
[1688245744538,15.68704878,1923.8,1923.7,2.67791614]
[1688245745136,21.15304878,1923.8,1923.7,2.67791614]
[1688245745339,23.58261588,1923.8,1923.7,2.67791614]
[1688245745804,24.06261588,1923.8,1923.7,2.67791614]
[1688245761335,2.69194878,1923.8,1923.7,2.67791614]
[1688245761835,7.88998878,1923.8,1923.7,2.67791614]
[1688245762868,13.08802878,1923.8,1923.7,2.67791614]
[1688245765348,15.68704878,1923.8,1923.7,2.67791614]
[1688245780860,10.40050694,1923.8,1923.7,2.67791614]
[1688245785609,12.99952694,1923.8,1923.7,2.67791614]
[1688245786107,10.40050694,1923.8,1923.7,2.67791614]
[1688245800998,5.20246694,1923.8,1923.7,2.67791614]
[1688245806115,10.40050694,1923.8,1923.7,2.67791614]
[1688245808546,5.20246694,1923.8,1923.7,2.67791614]
[1688245808925,10.40050694,1923.8,1923.7,2.67791614]
[1688245810918,5.20246694,1923.8,1923.7,2.67791614]
[1688245811328,10.40050694,1923.8,1923.7,2.67791614]
[1688245814260,12.99952694,1923.8,1923.7,2.67791614]
[1688245814956,15.68704878,1923.8,1923.7,2.67791614]
[1688245815157,17.55718068,1923.8,1923.7,2.67791614]
[1688245816457,10.40050694,1923.8,1923.7,2.67791614]
[1688245825091,0.00442694,1923.8,1923.7,2.67791614]
[1688245826287,10.3959,1923.9,1923.7,2.67791614]
[1688245827287,0.00426806,1923.8,1923.7,2.67791614]
[1688245828098,0.00426806,1923.8,1923.7,3.62191614]
[1688245828258,5.19736,1924.1,1923.7,14.38072775]
[1688245828456,5.19736,1924.1,1923.8,6.147]
[1688245828876,10.39472,1924.1,1923.8,6.147]
[1688245829287,0.00428579,1924.0,1923.8,6.147]
[1688245829693,5.20184579,1924.0,1923.8,6.147]
[1688245829983,5.20184579,1924.0,1923.9,0.6147]
[1688245830390,10.39940579,1924.0,1923.7,4.63490775]
[1688245830556,5.20184579,1924.0,1923.7,4.63490775]
[1688245830899,5.20184579,1924.0,1923.7,3.04010775]
[1688245831549,10.39940579,1924.0,1923.7,3.04010775]
[1688245837437,10.39940579,1924.0,1923.8,0.30401078]
[1688245850526,10.39940579,1924.0,1923.7,3.04010775]
[1688245855042,10.39940579,1924.0,1923.7,2.67791614]
[1688245855208,12.99815579,1924.0,1923.7,2.67791614]
[1688245855394,2.68752184,1923.9,1923.7,2.67791614]
[1688245855594,13.08342184,1923.9,1923.7,2.67791614]
[1688245856336,0.0046056,1923.8,1923.7,2.67791614]
[1688245857201,13.08342184,1923.9,1923.7,2.67791614]
[1688245857519,7.88547184,1923.9,1923.7,2.67791614]
[1688245858430,0.0046056,1923.8,1923.7,2.67791614]
[1688245859197,7.88547184,1923.9,1923.7,2.67791614]
[1688245860228,0.00444953,1923.8,1923.7,2.67791614]
[1688245861209,7.88547184,1923.9,1923.7,2.67791614]
[1688245862337,0.00444953,1923.8,1923.7,2.67791614]
[1688245863425,7.88547184,1923.9,1923.7,2.67791614]
[1688245864307,0.00444953,1923.8,1923.7,2.67791614]
[1688245865346,7.88547184,1923.9,1923.7,2.67791614]
[1688245866213,0.00444953,1923.8,1923.7,2.67791614]
[1688245867498,7.88547184,1923.9,1923.7,2.67791614]
[1688245867499,2.68752184,1923.9,1923.7,2.67791614]
[1688245868212,0.00444953,1923.8,1923.7,2.67791614]
[1688245869365,2.68752184,1923.9,1923.7,2.67791614]
[1688245870245,0.00444953,1923.8,1923.7,2.67791614]
[1688245871343,2.68752184,1923.9,1923.7,2.67791614]
[1688245872231,0.00444953,1923.8,1923.7,2.67791614]
[1688245873465,2.68752184,1923.9,1923.7,2.67791614]
[1688245874474,0.00444953,1923.8,1923.7,2.67791614]
[1688245875261,7.88532184,1923.9,1923.7,2.67791614]
[1688245876467,0.00444953,1923.8,1923.7,2.67791614]
[1688245877370,7.88532184,1923.9,1923.7,2.67791614]
[1688245878369,0.00444953,1923.8,1923.7,2.67791614]
[1688245879260,7.88532184,1923.9,1923.7,2.67791614]
[1688245880281,0.00444953,1923.8,1923.7,2.67791614]
[1688245881358,7.88532184,1923.9,1923.7,2.67791614]
[1688245882274,0.00444953,1923.8,1923.7,2.67791614]
[1688245883277,7.88532184,1923.9,1923.7,2.67791614]
[1688245884370,0.00444953,1923.8,1923.7,2.67791614]
[1688245885269,7.88532184,1923.9,1923.7,2.67791614]
[1688245886258,0.00444953,1923.8,1923.7,2.67791614]
[1688245887380,7.88532184,1923.9,1923.7,2.67791614]
[1688245888279,0.00444953,1923.8,1923.7,2.67791614]
[1688245889367,7.88532184,1923.9,1923.7,2.67791614]
[1688245890379,0.00444953,1923.8,1923.7,2.67791614]
[1688245891271,7.29032479,1924.0,1923.7,3.98540175]
[1688245891272,0.42145479,1924.0,1923.7,3.98540175]
[1688245891452,12.31056914,1924.1,1923.7,3.98540175]
[1688245891654,14.99809098,1924.1,1923.7,2.67791614]
[1688245892491,5.20199722,1924.0,1923.7,2.67791614]
[1688245902597,10.39952722,1924.0,1923.7,2.67791614]
[1688245917483,5.20199722,1924.0,1923.7,2.67791614]
[1688245920284,13.08701906,1924.0,1923.7,2.67791614]
[1688245920484,1.30870191,1923.9,1923.7,2.67791614]
[1688245920709,10.39584,1923.9,1923.7,2.67791614]
[1688245921385,0.00442729,1923.8,1923.7,7.87621614]
[1688245922302,5.19781,1923.9,1923.7,7.87621614]
[1688245923418,0.00442729,1923.8,1923.7,7.87621614]
[1688245924299,14.68936184,1924.0,1923.7,7.87621614]
[1688245924635,16.60974794,1924.0,1923.7,7.87621614]
[1688245925334,0.00443614,1923.9,1923.7,13.07452614]
[1688245925726,0.00443614,1923.9,1923.7,10.47452614]
[1688245927729,0.00443614,1923.9,1923.7,5.27621614]
[1688245939526,0.00443614,1923.9,1923.7,0.07791614]
[1688245941646,5.20225614,1923.9,1923.7,0.07791614]
[1688245941939,0.00443614,1923.9,1923.7,0.07791614]
[1688245942964,0.00443614,1923.9,1923.7,5.27621614]
[1688245945235,5.20221614,1923.9,1923.7,5.27621614]
[1688245949449,0.00443614,1923.9,1923.7,5.27621614]
[1688245950146,5.20223614,1923.9,1923.7,5.27621614]
[1688245951451,4.68493983,1923.9,1923.7,5.27621614]
[1688245952316,0.00417975,1923.8,1923.7,5.27621614]
[1688245953239,4.68493983,1923.9,1923.7,5.27621614]
[1688245954454,0.00417975,1923.8,1923.7,5.27621614]
[1688245955351,4.68493983,1923.9,1923.7,5.27621614]
[1688245956266,0.00416863,1923.8,1923.7,5.27621614]
[1688245957317,4.68493983,1923.9,1923.7,5.27621614]
[1688245958360,0.00416863,1923.8,1923.7,5.27621614]
[1688245959358,4.68493983,1923.9,1923.7,5.27621614]
[1688245960358,0.00416863,1923.8,1923.7,5.27621614]
[1688245961374,4.68493983,1923.9,1923.7,6.48827575]
[1688245961573,4.68493983,1923.9,1923.7,5.27621614]
[1688245962085,14.68937184,1924.0,1923.7,5.27621614]
[1688245962281,0.00416863,1923.8,1923.7,5.27621614]
[1688245963399,14.68937184,1924.0,1923.7,5.27621614]
[1688245964404,0.00417747,1923.9,1923.7,5.27621614]
[1688245964899,5.20195747,1923.9,1923.7,5.27621614]
[1688245967489,0.00417747,1923.9,1923.7,5.27621614]
[1688245967688,0.00417747,1923.9,1923.7,11.68658575]
[1688245968399,10.39476,1924.1,1923.7,11.68658575]
[1688245969299,0.00418632,1924.0,1923.7,11.68658575]
[1688245973021,5.20170632,1924.0,1923.7,11.68658575]
[1688245973309,0.00418632,1924.0,1923.7,11.68658575]
[1688245973479,0.00418632,1924.0,1923.8,1.16865858]
[1688245973778,5.20170632,1924.0,1923.8,1.16865858]
[1688245975412,5.20170632,1924.0,1923.8,6.36668858]
[1688245978307,0.00418632,1924.0,1923.8,6.36668858]
[1688245978607,0.00418632,1924.0,1923.8,11.56472858]
[1688245979711,0.00418632,1924.0,1923.9,1.15647286]
[1688245979915,0.00418632,1924.0,1923.9,15.09789286]
[1688245980403,10.39308,1924.4,1923.9,15.09789286]
[1688245980707,5.1967,1924.3,1923.9,14.15089286]
[1688245980886,5.1967,1924.3,1924.0,0.943]
[1688245981082,10.39313,1924.4,1924.1,5.19723]
[1688245981288,0.00419895,1924.2,1924.1,5.19723]
[1688245981488,0.00419895,1924.2,1924.1,6.33099]
[1688245982385,10.39313,1924.4,1924.1,6.33099]
[1688245983400,0.00420779,1924.3,1924.1,6.33099]
[1688245984528,0.00420779,1924.3,1924.1,11.52822]
[1688245989395,5.20092779,1924.3,1924.1,1.13376]
[1688245989623,5.20092779,1924.3,1923.9,7.29812286]
[1688245989819,5.20092779,1924.3,1923.9,12.49580286]
[1688245990092,5.20092779,1924.3,1923.9,7.29812286]
[1688245990609,5.20092779,1924.3,1923.9,12.49589286]
[1688245991462,5.20092779,1924.3,1924.0,1.24958929]
[1688245991741,5.20092779,1924.3,1924.0,5.19737]
[1688245992237,0.00420779,1924.3,1924.0,10.39487]
[1688245995998,0.00420779,1924.3,1924.0,12.89767]
[1688245996340,13.50232909,1924.5,1924.0,12.89767]
[1688245996510,2.68752184,1924.4,1924.0,12.89767]
[1688245996709,8.30597909,1924.5,1924.0,14.56297129]
[1688245996909,3.10974909,1924.5,1924.0,17.16172129]
[1688245997223,8.30594909,1924.5,1924.0,17.16172129]
[1688245997534,0.00419996,1924.4,1924.0,17.16172129]
[1688246002857,5.20061996,1924.4,1924.0,17.16172129]
[1688246003168,5.20061996,1924.4,1924.1,1.71617213]
[1688246003340,5.20061996,1924.4,1924.1,6.91325213]
[1688246006046,10.39703996,1924.4,1924.0,6.75925]
[1688246006240,10.39703996,1924.4,1923.9,11.55169286]
[1688246007684,0.00419996,1924.4,1923.9,14.15057286]
[1688246009181,5.20062996,1924.4,1923.9,14.15057286]
[1688246009484,5.20062996,1924.4,1924.0,1.41505729]
[1688246009671,5.20062996,1924.4,1924.1,5.19718]
[1688246018289,0.00419996,1924.4,1924.1,10.39441]
[1688246020110,5.20063996,1924.4,1924.1,10.39441]
[1688246020809,5.20063996,1924.4,1924.1,5.19718]
[1688246021614,10.39707996,1924.4,1924.1,5.19718]
[1688246040342,0.00419996,1924.4,1924.1,6.54293173]
[1688246040551,0.00419996,1924.4,1924.1,14.33877173]
[1688246041542,0.00419996,1924.4,1924.3,10.39338]
[1688246049700,0.00419996,1924.4,1924.2,5.19687]
[1688246049898,0.00419996,1924.4,1924.2,10.3937]
[1688246050198,0.00419996,1924.4,1924.3,1.03937]
[1688246053317,0.00419996,1924.4,1924.3,6.23606]
[1688246054672,0.00419996,1924.4,1924.3,11.43275]
[1688246063062,0.00419996,1924.4,1924.3,1.03937]
[1688246063668,0.00419996,1924.4,1924.3,6.23606]
[1688246076903,0.00419996,1924.4,1924.3,14.03109]
[1688246080602,0.00419996,1924.4,1924.3,14.44068959]
[1688246085951,0.00419996,1924.4,1924.3,6.23606]
[1688246086138,0.00419996,1924.4,1924.3,5.19669]
[1688246086883,0.00419996,1924.4,1924.2,10.3936]
[1688246089836,0.00419996,1924.4,1924.2,5.1968]
[1688246090328,0.00419996,1924.4,1924.2,10.39376]
[1688246093691,0.00419996,1924.4,1924.2,12.99224]
[1688246102698,0.00419996,1924.4,1924.2,12.99376]
[1688246106911,0.00419996,1924.4,1924.2,15.59224]
[1688246126171,0.00419996,1924.4,1924.2,12.99376]
[1688246126377,5.82446512,1924.4,1924.2,2.6]
[1688246126782,5.82446512,1924.4,1924.2,7.7969]
[1688246127989,5.82446512,1924.4,1924.2,2.6]
[1688246128181,5.82437512,1924.4,1924.2,2.6]
[1688246128342,0.58243751,1924.3,1924.2,2.6]
[1688246128542,5.77912751,1924.3,1924.2,2.6]
[1688246128742,10.97581751,1924.3,1924.2,2.6]
[1688246129180,5.77912751,1924.3,1924.2,2.6]
[1688246129681,5.78291144,1924.3,1924.2,2.6]
[1688246129988,0.58622144,1924.3,1924.2,7.79696]
[1688246130744,5.78291144,1924.3,1924.2,2.6]
[1688246131365,0.58622144,1924.3,1924.2,7.79696]
[1688246131972,5.78291144,1924.3,1924.2,7.79696]
[1688246132389,5.78291144,1924.3,1924.2,2.6]
[1688246140900,0.58622144,1924.3,1924.2,7.79696]
[1688246144602,0.00378393,1924.3,1924.2,12.99392]
[1688246145574,4.68896164,1924.5,1924.2,12.99392]
[1688246145777,7.37648348,1924.5,1924.2,12.99392]
[1688246146501,0.00350514,1924.4,1924.2,12.99392]
[1688246147669,5.19995514,1924.4,1924.2,12.99392]
[1688246147860,6.977218,1924.4,1924.2,12.99392]
[1688246157328,6.977218,1924.4,1924.2,7.79696]
[1688246164946,12.173668,1924.4,1924.2,7.79696]
[1688246167506,14.86118984,1924.4,1924.2,2.6]
[1688246179456,14.86118984,1924.4,1924.2,7.79694]
[1688246181259,9.66473984,1924.4,1924.2,7.79694]
[1688246182561,14.86115984,1924.4,1924.2,7.79694]
[1688246183260,9.66470984,1924.4,1924.2,7.79694]
[1688246188966,14.86112984,1924.4,1924.2,7.79694]
[1688246191566,9.66470984,1924.4,1924.2,2.6]
[1688246192268,14.86112984,1924.4,1924.2,2.6]
[1688246193168,14.86112984,1924.4,1924.2,7.79695]
[1688246199470,9.66470984,1924.4,1924.2,7.79695]
[1688246210487,7.88744698,1924.4,1924.2,7.79695]
[1688246211886,7.88744698,1924.4,1924.2,5.19695]
[1688246212585,7.88744698,1924.4,1924.2,5.14695]
[1688246221217,2.68752184,1924.3,1924.1,5.19706]
[1688246221498,7.88769238,1924.3,1923.9,5.19767]
[1688246221666,9.19607908,1924.3,1923.9,5.19767]
[1688246222293,10.81327908,1924.3,1923.9,10.39544]
[1688246222513,14.39288908,1924.3,1923.9,5.19767]
[1688246222956,16.01008908,1924.3,1923.9,5.19767]
[1688246223160,6.79796891,1924.2,1923.9,5.19767]
[1688246223466,0.00335397,1924.1,1923.9,5.19767]
[1688246224492,6.79796891,1924.2,1923.9,5.19767]
[1688246225136,9.48549075,1924.2,1923.9,5.19762]
[1688246225437,0.00335953,1924.1,1923.9,10.39539]
[1688246226541,7.88449184,1924.2,1923.9,10.39539]
[1688246226841,9.48518069,1924.2,1923.9,10.39539]
[1688246227703,0.00335953,1924.1,1923.9,10.39539]
[1688246228520,9.48518069,1924.2,1923.9,10.39539]
[1688246229624,0.00336558,1924.1,1923.9,10.39539]
[1688246230733,9.48518069,1924.2,1923.9,10.39539]
[1688246230941,0.65420522,1924.1,1923.9,10.39539]
[1688246231232,9.48518069,1924.2,1923.9,10.39539]
[1688246231607,0.00335674,1924.0,1923.9,10.39539]
[1688246232592,9.48518069,1924.2,1923.9,10.39539]
[1688246232902,9.48518069,1924.2,1923.9,11.34239]
[1688246233440,0.00336558,1924.1,1923.9,11.34239]
[1688246234524,9.48518069,1924.2,1923.9,11.34239]
[1688246235529,0.00336558,1924.1,1923.9,11.34239]
[1688246236500,9.48518069,1924.2,1923.9,11.34239]
[1688246237149,4.28821069,1924.2,1923.9,11.34239]
[1688246237435,0.00336558,1924.1,1923.9,11.34239]
[1688246238418,14.68228069,1924.2,1923.9,11.34239]
[1688246238804,9.48518069,1924.2,1923.9,11.34239]
[1688246239544,0.00336558,1924.1,1923.9,10.39539]
[1688246240651,9.48518069,1924.2,1923.9,10.39539]
[1688246240942,0.94851807,1924.1,1923.9,10.39539]
[1688246241148,9.48518069,1924.2,1923.9,10.39539]
[1688246241452,0.00336558,1924.1,1923.9,10.39539]
[1688246242616,9.48518069,1924.2,1923.9,10.39539]
[1688246242821,9.48518069,1924.2,1923.9,5.19762]
[1688246243553,0.00336558,1924.1,1923.9,5.19762]
[1688246244152,0.00336558,1924.1,1923.9,10.39539]
[1688246244454,9.48518069,1924.2,1923.9,10.39539]
[1688246245659,0.00336558,1924.1,1923.9,10.39539]
[1688246246661,9.48518069,1924.2,1923.9,10.39539]
[1688246247670,0.00336558,1924.1,1923.9,10.39539]
[1688246247978,0.00336558,1924.1,1923.9,5.19762]
[1688246248278,0.00336558,1924.1,1923.9,10.39539]
[1688246248572,9.48518069,1924.2,1923.9,10.39539]
[1688246249569,0.00336558,1924.1,1923.9,10.39539]
[1688246250438,9.48518069,1924.2,1923.9,10.39539]
[1688246250648,0.44296745,1924.4,1923.9,12.99427]
[1688246250873,7.90054098,1924.4,1923.9,13.94327]
[1688246251375,13.09701098,1924.4,1923.9,13.94327]
[1688246251531,0.00338326,1924.3,1923.9,15.52987]
[1688246251728,5.20011326,1924.3,1923.9,15.52987]
[1688246253571,5.20011326,1924.3,1923.9,14.58087]
[1688246255050,10.39684326,1924.3,1923.9,14.58087]
[1688246261377,12.13018768,1924.3,1923.9,14.58087]
[1688246263283,0.00338326,1924.3,1923.9,15.52987]
[1688246264853,5.20010326,1924.3,1923.9,15.52987]
[1688246275313,5.20010326,1924.3,1923.9,15.94495309]
[1688246278877,5.20010326,1924.3,1923.9,14.99595309]
[1688246287648,0.00338326,1924.3,1923.9,14.99595309]
[1688246287842,0.00338326,1924.3,1924.1,0.949]
[1688246288128,0.00338326,1924.3,1924.2,12.9924]
[1688246288499,1.03716164,1924.5,1924.2,12.9924]
[1688246289634,0.00324971,1924.4,1924.2,12.9924]
[1688246293541,0.00324971,1924.4,1924.2,15.5924]
[1688246293750,0.00324971,1924.4,1924.2,17.39807]
[1688246341503,0.00324971,1924.4,1924.2,7.79686]
[1688246342307,0.00324971,1924.4,1924.2,12.99382]
[1688246352131,0.00324971,1924.4,1924.2,12.99093511]
[1688246365246,0.00324971,1924.4,1924.2,7.79397511]
[1688246365419,0.00324971,1924.4,1924.2,2.59711511]
[1688246365626,0.72101985,1924.4,1924.2,7.79405511]
[1688246372578,0.72101985,1924.4,1924.2,12.99101511]
[1688246374244,0.00324971,1924.4,1924.2,12.99101511]
[1688246387070,0.00324971,1924.4,1924.2,15.58949511]
[1688246393866,0.00324971,1924.4,1924.2,12.99101511]
[1688246413437,0.00324971,1924.4,1924.2,15.58949511]
[1688246469710,0.00342612,1924.3,1924.2,15.58949511]
[1688246470617,1.03716164,1924.5,1924.2,15.58949511]
[1688246470807,1.8265858,1924.5,1924.2,15.58949511]
[1688246471748,0.00343493,1924.4,1924.2,15.58949511]
[1688246522908,1.0357193,1924.5,1924.2,15.58949511]
[1688246523780,0.0033145,1924.4,1924.2,15.58949511]
[1688246541578,0.0033145,1924.4,1924.2,2.59711511]
[1688246541730,0.0033145,1924.4,1924.2,15.58949511]
[1688246541931,0.0033145,1924.4,1924.2,17.60362842]
[1688246543475,0.0033145,1924.4,1924.2,7.79405511]
[1688246543782,0.0033145,1924.4,1924.2,7.79403511]
[1688246552003,0.0033145,1924.4,1924.2,12.99099511]
[1688246554268,0.0033145,1924.4,1924.2,7.79403511]
[1688246572344,0.0033145,1924.4,1924.2,12.99099511]
[1688246574448,0.0033145,1924.4,1924.2,7.79403511]
[1688246576527,0.0033145,1924.4,1924.2,12.99099511]
[1688246577147,0.0033145,1924.4,1924.2,7.79403511]
[1688246577751,0.0033145,1924.4,1924.2,10.39388]
[1688246580447,0.0033145,1924.4,1924.2,12.99388]
[1688246580626,0.0033145,1924.4,1924.2,7.79692]
[1688246583055,0.0033145,1924.4,1924.2,12.99388]
[1688246589467,0.0033145,1924.4,1924.2,7.79692]
[1688246590759,0.0033145,1924.4,1924.2,12.99388]
[1688246591967,0.0033145,1924.4,1924.2,7.79692]
[1688246592174,0.0033145,1924.4,1924.2,12.99388]
[1688246597079,0.0033145,1924.4,1924.2,7.79692]
[1688246598079,0.0033145,1924.4,1924.2,12.99388]
[1688246599485,12.9944045,1924.4,1924.2,2.6]
[1688246599786,6.49613045,1924.3,1924.2,2.6]
[1688246599960,1.29944045,1924.3,1924.2,2.6]
[1688246600791,1.30260384,1924.3,1924.2,2.6]
[1688246600990,3.99012568,1924.3,1924.2,2.6]
[1688246601518,14.38350568,1924.3,1924.2,2.6]
[1688246601824,9.18681568,1924.3,1924.2,2.6]
[1688246602119,3.99012568,1924.3,1924.2,2.6]
[1688246602923,9.18681568,1924.3,1924.2,2.6]
[1688246605013,14.38350568,1924.3,1924.2,2.6]
[1688246605223,9.18681568,1924.3,1924.2,2.6]
[1688246607610,14.38350568,1924.3,1924.2,2.6]
[1688246612221,9.18681568,1924.3,1924.2,2.6]
[1688246622551,14.38350568,1924.3,1924.2,2.6]
[1688246623554,9.18681568,1924.3,1924.2,2.6]
[1688246630229,0.00316339,1924.3,1924.2,2.6]
[1688246634863,0.00316339,1924.3,1924.2,7.79696]
[1688246636942,11.44490844,1924.5,1924.2,7.79696]
[1688246637995,0.00316667,1924.4,1924.2,7.79696]
[1688246638572,5.19960667,1924.4,1924.2,7.79696]
[1688246641673,10.39604667,1924.4,1924.2,7.79696]
[1688246641878,10.39604667,1924.4,1924.2,2.6]
[1688246648417,10.3812111,1924.4,1924.2,2.6]
[1688246648781,0.00303945,1924.3,1924.2,2.6]
[1688246648983,5.19972945,1924.3,1924.2,2.6]
[1688246662632,10.39641945,1924.3,1924.2,2.6]
[1688246664993,5.19972945,1924.3,1924.2,2.6]
[1688246678930,5.19972945,1924.3,1924.2,7.79696]
[1688246680343,10.39641945,1924.3,1924.2,2.6]
[1688246680713,5.19972945,1924.3,1924.2,2.6]
[1688246681217,10.39641945,1924.3,1924.2,2.6]
[1688246681933,5.19972945,1924.3,1924.2,2.6]
[1688246684350,5.19972945,1924.3,1924.2,2.5967]
[1688246692850,0.00303945,1924.3,1924.2,2.5967]
[1688246693256,0.00303945,1924.3,1924.2,12.99062]
[1688246693440,0.00303945,1924.3,1924.2,14.289682]
[1688246693863,1.0357193,1924.5,1924.2,14.289682]
[1688246694035,1.0357193,1924.5,1924.2,16.888162]
[1688246694567,6.2318693,1924.5,1924.2,16.888162]
[1688246694866,0.00304827,1924.4,1924.2,16.888162]
[1688246695730,0.00304827,1924.4,1924.2,14.289682]
[1688246695931,5.19949827,1924.4,1924.2,14.289682]
[1688246699179,5.19949827,1924.4,1924.2,12.99062]
[1688246700888,5.19949827,1924.4,1924.2,7.79366]
[1688246701050,5.19949827,1924.4,1924.2,2.5967]
[1688246701051,12.99415827,1924.4,1924.2,2.5967]
[1688246701388,5.19949827,1924.4,1924.2,2.5967]
[1688246701556,5.19949827,1924.4,1924.2,7.79366]
[1688246701557,6.34264303,1924.4,1924.2,7.79366]
[1688246703523,0.00304827,1924.4,1924.2,12.99062]
[1688246703948,5.19949827,1924.4,1924.2,7.79366]
[1688246710194,5.19949827,1924.4,1924.2,12.99062]
[1688246712938,0.00304827,1924.4,1924.2,12.99062]
[1688246720465,5.19950827,1924.4,1924.2,7.79366]
[1688246722450,10.39596827,1924.4,1924.2,7.79366]
[1688246736847,5.19950827,1924.4,1924.2,7.79366]
[1688246737057,5.19950827,1924.4,1924.2,12.99062]
[1688246737937,5.19950827,1924.4,1924.2,7.79366]
[1688246738338,10.39596827,1924.4,1924.2,7.79366]
[1688246750482,0.00304827,1924.4,1924.2,12.99062]
[1688246750688,0.00304827,1924.4,1924.2,17.295371]
[1688246751195,0.00304827,1924.4,1924.2,14.696891]
[1688246751515,5.19947827,1924.4,1924.2,12.99062]
[1688246752086,5.19947827,1924.4,1924.2,7.79366]
[1688246752249,5.19947827,1924.4,1924.2,2.5967]
[1688246755097,10.39590827,1924.4,1924.2,2.5967]
[1688246757251,10.39590827,1924.4,1924.2,7.79365]
[1688246758709,5.19947827,1924.4,1924.2,12.99061]
[1688246759005,0.00304827,1924.4,1924.2,12.99061]
[1688246759211,0.00304827,1924.4,1924.2,14.696881]
[1688246760368,0.00304827,1924.4,1924.2,17.295361]
[1688246765908,0.00304827,1924.4,1924.2,21.33188284]
[1688246766227,0.00304827,1924.4,1924.3,17.51124184]
[1688246766425,0.00304827,1924.4,1924.3,19.95251112]
[1688246769706,0.00304827,1924.4,1924.3,18.60051112]
[1688246776037,1.0357193,1924.5,1924.3,18.60051112]
[1688246810350,1.0357193,1924.5,1924.3,19.95490531]
[1688246817946,0.9857193,1924.5,1924.3,19.95490531]
[1688246818147,0.9857193,1924.5,1924.4,1.99549053]
[1688246818350,0.9857193,1924.5,1924.4,15.55585237]
[1688246822361,0.9857193,1924.5,1924.4,1.99549053]
[1688246822555,0.9857193,1924.5,1924.3,5.19654]
[1688246822713,0.9857193,1924.5,1924.3,13.08057184]
[1688246841309,0.9857193,1924.5,1924.4,0.48]
[1688246841509,0.9857193,1924.5,1924.4,5.67642]
[1688246841689,0.9857193,1924.5,1924.4,10.87284]
[1688246850096,0.9857193,1924.5,1924.4,11.77577807]
[1688246850314,0.9857193,1924.5,1924.4,10.87284]
[1688246855220,11.64867123,1924.5,1924.2,4.3687596]
[1688246855391,14.24674123,1924.5,1924.2,12.99058]
[1688246855720,1.25637123,1924.5,1924.2,15.58906]
[1688246855916,0.9857193,1924.5,1924.2,15.58906]
[1688246856500,6.1819193,1924.5,1924.2,15.58906]
[1688246857514,6.1819193,1924.5,1924.2,12.99058]
[1688246865252,6.1819193,1924.5,1924.2,15.58906]
[1688246865912,0.9857193,1924.5,1924.2,15.58906]
[1688246867955,0.9857193,1924.5,1924.2,18.27658184]
[1688246868257,0.9857193,1924.5,1924.4,5.19642]
[1688246870348,0.9857193,1924.5,1924.4,10.39284]
[1688246870562,0.9857193,1924.5,1924.4,12.99105]
[1688246872630,0.9857193,1924.5,1924.4,10.39284]
[1688246892670,0.9857193,1924.5,1924.4,15.67857184]
[1688246892833,0.9857193,1924.5,1924.4,18.03426002]
[1688246904926,0.9857193,1924.5,1924.4,18.45739519]
[1688246931573,0.9857193,1924.5,1924.4,19.36029456]
[1688246952490,0.98254898,1924.5,1924.4,19.36029456]
[1688246977928,0.98254898,1924.5,1924.4,19.90509793]
[1688246995483,0.98254898,1924.5,1924.4,25.37209793]
[1688247003742,0.98254898,1924.5,1924.4,19.90509793]
[1688247004525,0.98254898,1924.5,1924.4,16.82688793]
[1688247004747,0.98254898,1924.5,1924.4,14.52806458]
[1688247005037,0.98254898,1924.5,1924.4,17.12627458]
[1688247006354,0.98254898,1924.5,1924.4,17.60627458]
[1688247007371,0.98254898,1924.5,1924.4,23.07327458]
[1688247016231,0.98254898,1924.5,1924.4,17.60627458]
[1688247025255,0.98254898,1924.5,1924.4,20.08626693]
[1688247067616,0.98254898,1924.5,1924.4,20.90513466]
[1688247069323,0.98254898,1924.5,1924.4,20.36033129]
[1688247082885,0.98254898,1924.5,1924.4,20.4889585]
[1688247085257,0.98254898,1924.5,1924.4,21.03479735]
[1688247085900,0.98254898,1924.5,1924.4,21.03479895]
[1688247086999,0.98254898,1924.5,1924.4,21.03479912]
[1688247087496,0.98254898,1924.5,1924.4,21.03479974]
[1688247089000,0.98254898,1924.5,1924.4,20.4889585]
[1688247090980,0.98254898,1924.5,1924.4,20.36033129]
[1688247100206,0.98254898,1924.5,1924.4,22.36033129]
[1688247101009,0.98254898,1924.5,1924.4,20.36033129]
[1688247101616,0.98254898,1924.5,1924.4,22.36033129]
[1688247106895,0.98254898,1924.5,1924.4,19.76212129]
[1688247107338,0.98254898,1924.5,1924.4,22.36033129]
[1688247108304,0.98254898,1924.5,1924.4,19.88033894]
[1688247111933,0.98254898,1924.5,1924.4,17.88033894]
[1688247112122,0.98254898,1924.5,1924.4,19.88033894]
[1688247114346,0.98254898,1924.5,1924.4,17.28212894]
[1688247114500,0.98254898,1924.5,1924.4,19.88033894]
[1688247115112,0.98254898,1924.5,1924.4,22.06969208]
[1688247117346,0.98254898,1924.5,1924.4,20.06969208]
[1688247118913,0.98254898,1924.5,1924.4,22.06969208]
[1688247120250,0.98254898,1924.5,1924.4,20.06969208]
[1688247121242,0.98254898,1924.5,1924.4,22.06969208]
[1688247126532,0.98254898,1924.5,1924.4,20.06969208]
[1688247128362,0.98254898,1924.5,1924.4,22.06969208]
[1688247129419,0.98254898,1924.5,1924.4,22.20214144]
[1688247138266,0.98254898,1924.5,1924.4,20.20214144]
[1688247138631,0.98254898,1924.5,1924.4,22.20214144]
[1688247142175,0.98254898,1924.5,1924.4,9.21109144]
[1688247142475,0.98254898,1924.5,1924.4,17.00572144]
[1688247142767,0.98254898,1924.5,1924.4,22.20214144]
[1688247145986,0.98254898,1924.5,1924.4,20.20214144]
[1688247146343,0.98254898,1924.5,1924.4,22.20214144]
[1688247147974,0.98254898,1924.5,1924.4,22.06969208]
[1688247158297,0.98254898,1924.5,1924.4,20.06969208]
[1688247158862,0.98254898,1924.5,1924.4,22.06969208]
[1688247159696,0.98254898,1924.5,1924.4,20.06969208]
[1688247159898,0.98254898,1924.5,1924.4,22.06969208]
[1688247160895,0.98254898,1924.5,1924.4,20.06969208]
[1688247161486,0.98254898,1924.5,1924.4,26.40162309]
[1688247162494,0.98254898,1924.5,1924.4,25.31056518]
[1688247162700,0.98254898,1924.5,1924.4,26.66492179]
[1688247163412,0.98254898,1924.5,1924.4,28.66492179]
[1688247165229,0.98254898,1924.5,1924.4,26.66492179]
[1688247165511,0.98254898,1924.5,1924.4,28.66492179]